bitfinex/quotes_BTCUSD_20241205
["timestamp","ask_amount","ask_price","bid_price","bid_amount"]
[1733418753091,0.396243,100950.0,100930.0,0.0121584]
[1733418753567,0.396243,100950.0,100930.0,0.2103144]
[1733418753800,0.75348755,100950.0,100930.0,0.0121584]
[1733418754023,0.198137,100940.0,100930.0,0.0121584]
[1733418754477,0.198137,100940.0,100930.0,0.0131584]
[1733418755409,0.198137,100940.0,100930.0,0.1122284]
[1733418755862,0.198137,100940.0,100930.0,0.11241356]
[1733418756110,0.22312468,100940.0,100930.0,0.11241356]
[1733418756334,0.198137,100940.0,100930.0,0.11241356]
[1733418756816,0.29781305,100940.0,100930.0,0.11241356]
[1733418757692,0.396243,100950.0,100930.0,0.11241356]
[1733418758130,0.594372,100950.0,100930.0,0.11241356]
[1733418758348,0.198137,100940.0,100930.0,0.11328086]
[1733418758782,0.257575,100940.0,100930.0,0.11228086]
[1733418759034,0.257575,100940.0,100930.0,0.11328086]
[1733418759244,0.35725105,100940.0,100930.0,0.11328086]
[1733418760299,0.35725105,100940.0,100930.0,0.11428086]
[1733418760507,0.40615105,100940.0,100930.0,0.11228086]
[1733418760721,0.40615105,100940.0,100930.0,0.11328086]
[1733418760888,0.40615105,100940.0,100930.0,0.11428086]
[1733418762279,0.48685105,100940.0,100930.0,0.05483286]
[1733418762488,0.48685105,100940.0,100930.0,0.01520086]
[1733418762752,0.198196,100910.0,100900.0,0.00031]
[1733418763002,0.278916,100900.0,100890.0,0.00122927]
[1733418763203,0.37859205,100900.0,100890.0,0.00122927]
[1733418763952,0.37859205,100900.0,100890.0,0.000919]
[1733418764185,0.38459205,100900.0,100890.0,0.000919]
[1733418764591,0.38859205,100900.0,100890.0,0.000919]
[1733418764798,0.48651127,100900.0,100890.0,0.000919]
[1733418767955,0.38859205,100900.0,100890.0,0.000919]
[1733418769172,0.40879867,100900.0,100890.0,0.000919]
[1733418770174,0.38859205,100900.0,100890.0,0.000919]
[1733418770593,0.01,100900.0,100890.0,0.000919]
[1733418770805,0.30913095,100900.0,100890.0,0.000919]
[1733418771035,0.30789205,100900.0,100890.0,0.000919]
[1733418771243,0.30389205,100900.0,100890.0,0.000919]
[1733418771447,0.38974256,100900.0,100890.0,0.000919]
[1733418772798,0.38974256,100900.0,100890.0,0.001919]
[1733418773036,0.29789205,100900.0,100890.0,0.001919]
[1733418773255,0.29789205,100900.0,100890.0,0.002919]
[1733418774769,0.09967605,100900.0,100890.0,0.201154]
[1733418776512,0.00123891,100900.0,100890.0,0.201154]
[1733418777130,0.00123891,100900.0,100890.0,0.002919]
[1733418777752,0.00123891,100900.0,100890.0,0.201154]
[1733418777954,0.00123891,100900.0,100890.0,0.002919]
[1733418778388,0.00123891,100900.0,100890.0,0.201154]
[1733418778595,0.00123891,100900.0,100890.0,0.002919]
[1733418779200,0.00123891,100900.0,100890.0,0.01830263]
[1733418779408,0.00123891,100900.0,100890.0,0.201154]
[1733418779842,0.396376,100920.0,100890.0,0.201154]
[1733418779843,0.0012389,100910.0,100890.0,0.399378]
[1733418780066,0.29911195,100910.0,100890.0,0.399368]
[1733418780266,0.56686574,100910.0,100890.0,0.201143]
[1733418780680,0.56686574,100910.0,100890.0,0.200154]
[1733418780883,0.76507774,100910.0,100890.0,0.001919]
[1733418781097,0.198216,100900.0,100890.0,0.000919]
[1733418781311,0.56562684,100910.0,100890.0,0.001919]
[1733418781513,0.0012389,100900.0,100890.0,0.002919]
[1733418781664,0.29913095,100900.0,100890.0,0.002919]
[1733418781873,0.39422142,100900.0,100890.0,0.002919]
[1733418782074,0.51612142,100900.0,100890.0,0.002919]
[1733418782687,0.51612142,100900.0,100890.0,0.001919]
[1733418782865,0.51785762,100900.0,100890.0,0.001919]
[1733418783288,0.51785762,100900.0,100890.0,0.000919]
[1733418783465,0.51785762,100900.0,100890.0,0.001919]
[1733418783665,0.52385762,100900.0,100890.0,0.001919]
[1733418784338,0.52385762,100900.0,100890.0,0.000919]
[1733418784747,0.52785762,100900.0,100890.0,0.000919]
[1733418785168,0.38482825,100900.0,100890.0,0.000919]
[1733418785368,0.11141225,100900.0,100890.0,0.000919]
[1733418785598,0.11265119,100900.0,100890.0,0.000919]
[1733418785814,0.31086719,100900.0,100890.0,0.000919]
[1733418786017,0.30962825,100900.0,100890.0,0.000919]
[1733418786216,0.30562825,100900.0,100890.0,0.000919]
[1733418786500,0.29962825,100900.0,100890.0,0.000919]
[1733418786889,0.10341225,100900.0,100890.0,0.001919]
[1733418787143,0.10265119,100900.0,100890.0,0.000919]
[1733418787349,0.10265119,100900.0,100890.0,0.001919]
[1733418787562,0.0017362,100900.0,100890.0,0.002919]
[1733418788608,0.0029751,100900.0,100890.0,0.002919]
[1733418789266,0.0029751,100900.0,100890.0,0.201154]
[1733418789467,0.0029751,100900.0,100890.0,0.002919]
[1733418789892,0.2011911,100900.0,100890.0,0.002919]
[1733418790099,0.0017362,100900.0,100890.0,0.002919]
[1733418790313,0.0029751,100900.0,100890.0,0.002919]
[1733418790959,0.2011911,100900.0,100890.0,0.002919]
[1733418791162,0.1999522,100900.0,100890.0,0.002919]
[1733418792876,0.1999522,100900.0,100880.0,0.198254]
[1733418793094,0.0017362,100900.0,100890.0,0.19873256]
[1733418793301,0.0017362,100900.0,100880.0,0.561034]
[1733418793748,0.0017362,100900.0,100890.0,0.09911]
[1733418793953,0.2009522,100900.0,100890.0,0.09911]
[1733418794575,0.0027362,100900.0,100890.0,0.09911]
[1733418794840,0.0017362,100900.0,100890.0,0.09911]
[1733418795049,0.00297509,100900.0,100890.0,0.09911]
[1733418795285,0.00297509,100900.0,100890.0,0.1309464]
[1733418795723,0.00297509,100900.0,100890.0,0.1019781]
[1733418797185,0.20119109,100900.0,100890.0,0.1019781]
[1733418797381,0.0017362,100900.0,100890.0,0.1019781]
[1733418797588,0.10265114,100900.0,100890.0,0.1019781]
[1733418797794,0.30086714,100900.0,100890.0,0.1019781]
[1733418798023,0.29962825,100900.0,100890.0,0.1019781]
[1733418798919,0.39754747,100900.0,100890.0,0.1019781]
[1733418799579,0.39733417,100900.0,100890.0,0.1019781]
[1733418799817,0.29941495,100900.0,100890.0,0.1019781]
[1733418801536,0.29941495,100900.0,100890.0,0.0999781]
[1733418801964,0.47551495,100900.0,100890.0,0.0999781]
[1733418802445,0.47751495,100900.0,100890.0,0.0999781]
[1733418802622,0.57543417,100900.0,100890.0,0.0999781]
[1733418802844,0.57843417,100900.0,100890.0,0.0999781]
[1733418805515,0.198294,100860.0,100850.0,0.00117667]
[1733418805723,0.29797005,100860.0,100850.0,0.00117667]
[1733418805937,0.29797005,100860.0,100850.0,0.0008664]
[1733418806154,0.38725366,100860.0,100850.0,0.0008664]
[1733418806376,0.29797005,100860.0,100850.0,0.0008664]
[1733418806999,0.29897005,100860.0,100850.0,0.0018664]
[1733418807440,0.29797005,100860.0,100850.0,0.0008664]
[1733418807655,0.29797005,100860.0,100850.0,0.0018664]
[1733418808712,0.39588927,100860.0,100850.0,0.0018664]
[1733418810028,0.47418927,100860.0,100850.0,0.0018664]
[1733418810948,0.47418927,100860.0,100850.0,0.0008664]
[1733418811158,0.67418927,100860.0,100850.0,4e-07]
[1733418811381,0.58318927,100860.0,100850.0,4e-07]
[1733418811862,0.374114,100850.0,100840.0,1e-06]
[1733418812079,0.50418277,100850.0,100840.0,1e-06]
[1733418813134,0.50818277,100850.0,100840.0,1e-06]
[1733418813765,0.51518277,100850.0,100840.0,1e-06]
[1733418813966,0.50818277,100850.0,100840.0,1e-06]
[1733418814212,0.379633,100840.0,100830.0,4e-07]
[1733418814412,0.198393,100810.0,100800.0,0.00031027]
[1733418814619,0.198412,100800.0,100790.0,0.00031027]
[1733418814829,0.29808805,100800.0,100790.0,0.00031027]
[1733418815710,0.49651205,100800.0,100780.0,0.0008681]
[1733418816329,0.69494205,100800.0,100780.0,0.0008681]
[1733418816744,0.69493705,100800.0,100780.0,0.0008681]
[1733418817366,0.49751205,100800.0,100780.0,0.1000881]
[1733418817805,0.69594105,100800.0,100770.0,0.60058915]
[1733418818014,0.69594105,100800.0,100770.0,0.67564807]
[1733418818490,0.49751205,100800.0,100780.0,0.198447]
[1733418818712,0.69593605,100800.0,100780.0,0.198447]
[1733418818914,0.69593605,100800.0,100780.0,0.099226]
[1733418819121,0.002,100800.0,100780.0,0.496119]
[1733418819359,0.10291602,100800.0,100780.0,0.32557142]
[1733418819566,0.30033702,100800.0,100780.0,0.297678]
[1733418819819,0.49652105,100800.0,100780.0,0.297678]
[1733418820025,0.29909705,100800.0,100780.0,0.49612]
[1733418820484,0.29809705,100800.0,100780.0,0.49612]
[1733418820696,0.29909705,100800.0,100780.0,0.49612]
[1733418820919,0.29909705,100800.0,100780.0,0.57700151]
[1733418821127,0.29909705,100800.0,100780.0,0.297668]
[1733418821337,0.49752405,100800.0,100780.0,0.099226]
[1733418821542,0.198432,100790.0,100780.0,0.099226]
[1733418821753,0.49752405,100800.0,100780.0,0.099226]
[1733418821976,0.49751805,100800.0,100780.0,0.297675]
[1733418822874,0.49651805,100800.0,100780.0,0.297675]
[1733418823112,0.49651805,100800.0,100780.0,0.496126]
[1733418823369,0.001,100790.0,100780.0,0.496126]
[1733418823595,0.09967605,100800.0,100780.0,0.739969]
[1733418823821,0.29908905,100800.0,100780.0,0.739959]
[1733418824276,0.29908805,100800.0,100780.0,0.54151]
[1733418824462,0.29908805,100800.0,100780.0,0.739949]
[1733418824710,0.29908805,100800.0,100780.0,0.541508]
[1733418825144,0.29908805,100800.0,100780.0,0.739949]
[1733418825541,0.29908805,100800.0,100780.0,0.541508]
[1733418825795,0.10067605,100800.0,100780.0,0.73995]
[1733418826257,0.001,100800.0,100790.0,0.36886965]
[1733418826463,0.001,100800.0,100780.0,2.235606]
[1733418826688,0.396798,100810.0,100790.0,0.49608]
[1733418826903,0.001,100800.0,100790.0,0.49608]
[1733418827137,0.29806905,100810.0,100790.0,0.49608]
[1733418827567,0.001,100800.0,100790.0,0.297648]
[1733418827980,0.00040608,100800.0,100790.0,0.297648]
[1733418828137,0.00140608,100800.0,100790.0,0.297648]
[1733418828335,0.001,100800.0,100790.0,0.297648]
[1733418828697,0.001,100800.0,100790.0,0.101216]
[1733418828892,0.199412,100800.0,100790.0,0.101216]
[1733418829107,0.199412,100800.0,100790.0,0.099216]
[1733418829320,0.198412,100800.0,100790.0,0.101216]
[1733418829779,0.198412,100800.0,100790.0,0.105216]
[1733418829968,0.198412,100800.0,100790.0,0.101216]
[1733418830177,0.198412,100800.0,100790.0,0.1020826]
[1733418830390,0.29783006,100800.0,100790.0,0.1060826]
[1733418830837,0.39574928,100800.0,100790.0,0.1060826]
[1733418831044,0.29783006,100800.0,100790.0,0.1060826]
[1733418831333,0.29783006,100800.0,100790.0,0.1040826]
[1733418832542,0.29783006,100800.0,100790.0,0.1000826]
[1733418832901,0.29783006,100800.0,100790.0,0.1010826]
[1733418835135,0.29783006,100800.0,100770.0,1.17694581]
[1733418835341,0.29811505,100790.0,100770.0,1.17694581]
[1733418835637,0.49655405,100790.0,100770.0,1.17694581]
[1733418835844,0.198439,100790.0,100770.0,1.37540881]
[1733418835972,0.39658101,100800.0,100780.0,0.198452]
[1733418836183,0.49625706,100800.0,100780.0,0.198452]
[1733418836393,0.001,100790.0,100780.0,0.496129]
[1733418836688,0.49725006,100800.0,100780.0,0.297677]
[1733418836963,0.69467906,100800.0,100780.0,0.297677]
[1733418837149,0.69567906,100800.0,100780.0,0.302677]
[1733418837350,0.69567906,100800.0,100780.0,0.297677]
[1733418837351,0.49725006,100800.0,100780.0,0.297677]
[1733418837778,0.29883006,100800.0,100780.0,0.496117]
[1733418837918,0.29883006,100800.0,100780.0,0.69456]
[1733418838123,0.001,100800.0,100790.0,0.198432]
[1733418838407,0.719621,100810.0,100790.0,0.297648]
[1733418838616,0.57188305,100810.0,100790.0,0.49608]
[1733418838819,0.198412,100800.0,100790.0,0.099216]
[1733418839048,0.42111756,100800.0,100790.0,0.099216]
[1733418839252,0.60161756,100800.0,100790.0,0.099216]
[1733418839474,0.60161756,100800.0,100790.0,0.100216]
[1733418839885,0.80161756,100800.0,100790.0,0.001001]
[1733418840106,0.324971,100770.0,100760.0,0.05031035]
[1733418840319,0.32617605,100770.0,100760.0,0.05]
[1733418840793,0.52464705,100770.0,100760.0,0.05]
[1733418841002,0.52464705,100770.0,100760.0,0.14924]
[1733418842139,0.53364705,100770.0,100760.0,0.14924]
[1733418842369,0.44064705,100770.0,100760.0,0.151107]
[1733418842586,0.43364705,100770.0,100760.0,0.150107]
[1733418842808,0.44264705,100770.0,100760.0,0.151107]
[1733418843764,0.74264705,100770.0,100760.0,0.151107]
[1733418843967,0.54264705,100770.0,100760.0,0.151107]
[1733418845636,0.44264705,100770.0,100760.0,0.151107]
[1733418846947,0.54264705,100770.0,100760.0,0.151107]
[1733418847165,0.64056627,100770.0,100760.0,0.151107]
[1733418847583,0.94056627,100770.0,100760.0,0.071709]
[1733418847781,0.198491,100760.0,100750.0,5e-05]
[1733418848013,0.42836705,100760.0,100750.0,5e-05]
[1733418848472,0.381811,100750.0,100740.0,0.0008682]
[1733418848687,0.48148705,100750.0,100740.0,0.0008682]
[1733418849782,0.48348705,100750.0,100740.0,2e-07]
[1733418849997,0.38348705,100750.0,100740.0,2e-07]
[1733418850142,0.38648705,100750.0,100740.0,2e-07]
[1733418850342,0.41687977,100750.0,100740.0,2e-07]
[1733418851009,0.46367977,100750.0,100740.0,2e-07]
[1733418852154,0.46167977,100750.0,100740.0,2e-07]
[1733418852383,0.45867977,100750.0,100740.0,2e-07]
[1733418852586,0.47067977,100750.0,100740.0,0.0010002]
[1733418852829,0.19855,100730.0,100720.0,0.0130246]
[1733418853186,0.13600185,100730.0,100720.0,0.0130246]
[1733418853352,0.13724312,100730.0,100720.0,0.0130246]
[1733418853566,0.26622952,100730.0,100720.0,0.0130246]
[1733418853765,0.26498825,100730.0,100720.0,0.0130246]
[1733418855054,0.39618825,100730.0,100720.0,0.0130246]
[1733418855279,0.39818825,100730.0,100720.0,0.0130246]
[1733418856296,0.49518825,100730.0,100720.0,0.0130246]
[1733418856516,0.59110747,100730.0,100720.0,0.0130246]
[1733418856845,0.60010747,100730.0,100720.0,0.0130246]
[1733418857441,0.60910747,100730.0,100720.0,0.0130246]
[1733418857886,0.41118825,100730.0,100720.0,0.0130246]
[1733418860814,0.41118825,100730.0,100720.0,0.1123046]
[1733418861489,0.43092102,100730.0,100720.0,0.1123046]
[1733418861925,0.53092102,100730.0,100720.0,0.1123046]
[1733418862161,0.51118825,100730.0,100720.0,0.1123046]
[1733418862391,0.60910747,100730.0,100720.0,0.1123046]
[1733418863052,0.60010747,100730.0,100720.0,0.1123046]
[1733418863472,0.59810747,100730.0,100720.0,0.1123046]
[1733418863693,0.59110747,100730.0,100720.0,0.1123046]
[1733418863877,0.59510747,100730.0,100720.0,0.1123046]
[1733418864134,0.49718825,100730.0,100720.0,0.1123046]
[1733418864357,0.49318825,100730.0,100720.0,0.1123046]
[1733418864767,0.50218825,100730.0,100720.0,0.1123046]
[1733418864986,0.51118825,100730.0,100720.0,0.1123046]
[1733418867211,0.51118825,100730.0,100720.0,0.1131722]
[1733418867418,0.61084267,100730.0,100720.0,0.1131722]
[1733418868985,0.51292345,100730.0,100720.0,0.1131722]
[1733418871292,0.5323391,100730.0,100720.0,0.1131722]
[1733418872600,0.4323391,100730.0,100720.0,0.1131722]
[1733418873081,0.4213391,100730.0,100720.0,0.1131722]
[1733418873291,0.4303391,100730.0,100720.0,0.1131722]
[1733418873503,0.52125832,100730.0,100720.0,0.1131722]
[1733418873935,0.53025832,100730.0,100720.0,0.1131722]
[1733418874198,0.93025832,100730.0,100720.0,0.0138872]
[1733418874644,0.91084267,100730.0,100720.0,0.0138872]
[1733418874853,0.91084267,100730.0,100720.0,1.3e-07]
[1733418875518,0.91084267,100730.0,100720.0,0.09928013]
[1733418875702,0.61084267,100730.0,100720.0,0.09928013]
[1733418876591,0.63103468,100730.0,100720.0,0.09928013]
[1733418880270,0.48811546,100730.0,100720.0,0.09928013]
[1733418880709,0.48811546,100730.0,100720.0,0.11928013]
[1733418880934,0.38811546,100730.0,100720.0,0.11928013]
[1733418881842,0.48811546,100730.0,100720.0,0.11928013]
[1733418882312,0.38811546,100730.0,100720.0,0.11928013]
[1733418882540,0.30491546,100730.0,100720.0,0.11928013]
[1733418883271,0.28472345,100730.0,100720.0,0.11928013]
[1733418883728,0.38264267,100730.0,100720.0,0.11928013]
[1733418884627,0.37364267,100730.0,100720.0,0.11928013]
[1733418884911,0.38064267,100730.0,100720.0,0.11928013]
[1733418886285,0.37164267,100730.0,100720.0,0.11928013]
[1733418886511,0.37164267,100730.0,100720.0,0.12028013]
[1733418886736,0.37864267,100730.0,100720.0,0.12028013]
[1733418887222,0.37164267,100730.0,100720.0,0.11928013]
[1733418887444,0.37664267,100730.0,100720.0,0.11928013]
[1733418887673,0.39639962,100730.0,100720.0,0.11928013]
[1733418887899,0.47719962,100730.0,100720.0,0.11928013]
[1733418890228,0.2984804,100730.0,100720.0,0.11928013]
[1733418890947,0.27872345,100730.0,100720.0,0.11928013]
[1733418893726,0.35982345,100730.0,100720.0,0.11928013]
[1733418893956,0.35982345,100730.0,100720.0,0.01999513]
[1733418894417,0.57981418,100730.0,100720.0,0.01999513]
[1733418894700,0.85372598,100730.0,100720.0,0.01999513]
[1733418894931,0.67775377,100730.0,100720.0,0.11927513]
[1733418895378,0.85376265,100730.0,100720.0,0.11927513]
[1733418896306,1.08576931,100730.0,100720.0,0.11927513]
[1733418896774,0.95377063,100730.0,100720.0,0.10900095]
[1733418897289,0.95377063,100730.0,100720.0,0.09359078]
[1733418897498,1.08576931,100730.0,100720.0,0.08237553]
[1733418897707,0.95378566,100730.0,100720.0,0.08237553]
[1733418898127,0.85378566,100730.0,100720.0,0.08237553]
[1733418898339,0.67476644,100730.0,100720.0,0.08237553]
[1733418898561,0.49875756,100730.0,100720.0,0.08237553]
[1733418898779,0.3667509,100730.0,100720.0,0.08237553]
[1733418900074,0.49875756,100730.0,100720.0,0.08237553]
[1733418900292,0.3667509,100730.0,100720.0,0.08237553]
[1733418900501,0.59667678,100730.0,100720.0,0.08237553]
[1733418900971,0.59667678,100730.0,100690.0,0.39155405]
[1733418900972,0.397169,100720.0,100690.0,0.39155405]
[1733418901179,0.29951036,100710.0,100690.0,0.39155305]
[1733418901763,0.49810736,100710.0,100690.0,0.19293405]
[1733418901992,0.29951036,100710.0,100690.0,0.29223405]
[1733418902151,0.49810836,100710.0,100690.0,0.29423405]
[1733418902360,0.69671336,100710.0,100690.0,0.299927]
[1733418902589,0.198609,100700.0,100690.0,0.1033]
[1733418902788,0.29828505,100700.0,100690.0,0.1033]
[1733418903019,0.29828505,100700.0,100690.0,0.1053]
[1733418903424,0.29828505,100700.0,100690.0,0.1033]
[1733418904195,0.37234798,100700.0,100690.0,0.1033]
[1733418904416,0.49804798,100700.0,100690.0,0.0993]
[1733418904598,0.5861324,100700.0,100690.0,0.1003]
[1733418905021,0.29828505,100700.0,100690.0,0.1003]
[1733418905239,0.09967605,100700.0,100690.0,0.1003]
[1733418905454,0.198602,100710.0,100690.0,0.0993]
[1733418905654,0.29952636,100700.0,100690.0,0.0993]
[1733418905861,0.30528505,100700.0,100690.0,0.0993]
[1733418906499,0.70253205,100700.0,100670.0,1.42003364]
[1733418906703,0.69553205,100700.0,100670.0,1.42003364]
[1733418906922,0.19863,100690.0,100670.0,1.42003564]
[1733418907124,0.397269,100690.0,100670.0,1.02272364]
[1733418907349,0.397269,100690.0,100670.0,0.72407264]
[1733418907567,0.198649,100680.0,100670.0,0.74920264]
[1733418907789,0.49694505,100690.0,100670.0,0.94786664]
[1733418908205,0.69558605,100690.0,100670.0,0.94786664]
[1733418908431,0.69558605,100690.0,100670.0,0.75120264]
[1733418909088,0.49694505,100690.0,100670.0,0.94987064]
[1733418909292,0.69658605,100690.0,100670.0,0.95287064]
[1733418909500,0.69658605,100690.0,100670.0,0.95087064]
[1733418909739,0.49794505,100690.0,100670.0,0.95087064]
[1733418909952,0.29930605,100690.0,100670.0,1.15153064]
[1733418910406,0.49794505,100690.0,100670.0,0.95286264]
[1733418910632,0.49794505,100690.0,100670.0,0.96627808]
[1733418910849,0.49794505,100690.0,100670.0,1.16493408]
[1733418910850,0.29930605,100690.0,100670.0,1.16493408]
[1733418911066,0.001,100690.0,100680.0,0.198649]
[1733418911483,0.001,100690.0,100680.0,0.025129]
[1733418911734,0.199629,100690.0,100680.0,0.025129]
[1733418911953,0.001,100690.0,100680.0,0.025129]
[1733418912174,0.595871,100700.0,100680.0,0.025129]
[1733418912428,0.69554705,100700.0,100680.0,0.026129]
[1733418913229,0.69554705,100700.0,100680.0,0.025129]
[1733418913447,0.69554705,100700.0,100680.0,0.026129]
[1733418914350,0.69554605,100700.0,100680.0,0.026129]
[1733418915196,0.198629,100690.0,100680.0,0.026129]
[1733418916164,0.37360505,100690.0,100680.0,0.025129]
[1733418916530,0.37360505,100690.0,100680.0,0.026129]
[1733418916931,0.47055276,100690.0,100680.0,0.026129]
[1733418917823,0.51755276,100690.0,100680.0,0.026129]
[1733418918301,0.51755276,100690.0,100680.0,1e-06]
[1733418919572,0.42060505,100690.0,100680.0,1e-06]
[1733418922797,0.42060505,100690.0,100670.0,0.0008679]
[1733418922980,0.42060505,100690.0,100640.0,0.94041719]
[1733418922981,0.29956672,100680.0,100640.0,0.94041719]
[1733418923195,0.29832505,100680.0,100650.0,0.397405]
[1733418923401,0.29832505,100680.0,100650.0,0.597391]
[1733418923644,0.405275,100690.0,100660.0,0.397367]
[1733418923840,0.008,100690.0,100670.0,0.198653]
[1733418924045,0.005,100690.0,100670.0,0.298653]
[1733418924243,0.402258,100690.0,100670.0,0.1]
[1733418924453,0.402258,100690.0,100670.0,0.298668]
[1733418924663,0.198629,100690.0,100670.0,0.58690531]
[1733418924866,0.397242,100700.0,100670.0,0.58690531]
[1733418925016,0.49691805,100700.0,100670.0,0.58690531]
[1733418925241,0.001,100680.0,100670.0,0.58690531]
[1733418925429,0.198632,100690.0,100670.0,0.38823731]
[1733418925912,0.199632,100690.0,100670.0,0.39423731]
[1733418926082,0.199632,100690.0,100670.0,0.29423731]
[1733418926288,0.398273,100690.0,100670.0,0.19643741]
[1733418926491,0.5986512,100690.0,100670.0,0.19643741]
[1733418926639,0.4000092,100690.0,100670.0,0.19643741]
[1733418926855,0.4000092,100690.0,100670.0,0.09643741]
[1733418927061,0.58078525,100690.0,100670.0,0.0068681]
[1733418927482,0.198649,100680.0,100670.0,0.0068681]
[1733418927706,0.77942925,100690.0,100670.0,0.0068681]
[1733418927914,0.77942925,100690.0,100670.0,0.0048681]
[1733418928116,0.58078525,100690.0,100670.0,0.0048681]
[1733418928325,0.57978525,100690.0,100670.0,0.0008681]
[1733418928528,0.2003682,100690.0,100670.0,0.0018681]
[1733418928731,0.3990062,100690.0,100670.0,0.0018681]
[1733418928982,0.3990072,100690.0,100670.0,0.0018681]
[1733418929403,0.3990132,100690.0,100670.0,0.0018681]
[1733418929647,0.29956649,100680.0,100670.0,0.0018681]
[1733418929830,0.29832505,100680.0,100670.0,0.0018681]
[1733418930921,0.37672505,100680.0,100670.0,0.0018681]
[1733418931499,0.38172505,100680.0,100670.0,0.0018681]
[1733418931708,0.47964427,100680.0,100670.0,0.0018681]
[1733418931884,0.47964427,100680.0,100670.0,0.0008681]
[1733418932289,0.52874427,100680.0,100670.0,0.0008681]
[1733418932978,0.53674427,100680.0,100670.0,0.0008681]
[1733418934323,0.43882505,100680.0,100670.0,0.00058619]
[1733418939123,0.44056105,100680.0,100670.0,0.00058619]
[1733418942753,0.31306105,100680.0,100670.0,0.00058619]
[1733418943003,0.014736,100680.0,100670.0,0.00058619]
[1733418944000,0.009736,100680.0,100670.0,0.00058619]
[1733418944248,0.003736,100680.0,100670.0,0.00058619]
[1733418944446,0.007736,100680.0,100670.0,0.00058619]
[1733418944867,0.005736,100680.0,100670.0,0.29925419]
[1733418945090,0.005736,100680.0,100670.0,0.47891451]
[1733418945751,0.005736,100680.0,100670.0,0.28024651]
[1733418945959,0.204385,100680.0,100670.0,0.00058619]
[1733418946173,0.30406105,100680.0,100670.0,0.00058619]
[1733418946927,0.200385,100680.0,100670.0,0.00058619]
[1733418947360,0.204385,100680.0,100670.0,0.00058619]
[1733418947585,0.007736,100680.0,100670.0,0.00058619]
[1733418947798,0.007736,100680.0,100670.0,0.19925419]
[1733418948043,0.001736,100680.0,100670.0,0.28019337]
[1733418948452,0.001736,100680.0,100670.0,0.38019337]
[1733418948646,0.001736,100680.0,100670.0,0.08152537]
[1733418949504,0.200385,100680.0,100670.0,0.00058619]
[1733418949720,0.282285,100680.0,100670.0,0.00058619]
[1733418949937,0.001736,100680.0,100670.0,0.00058619]
[1733418950164,0.001736,100680.0,100670.0,0.19925419]
[1733418950421,0.001736,100680.0,100670.0,0.00058619]
[1733418950659,0.3990112,100690.0,100670.0,0.00058619]
[1733418950873,0.2003692,100690.0,100670.0,0.00058619]
[1733418951831,0.2003692,100690.0,100670.0,0.10058619]
[1733418952031,0.0017362,100690.0,100670.0,0.43851344]
[1733418952660,0.2003652,100690.0,100670.0,0.15971344]
[1733418952872,0.0017362,100690.0,100670.0,0.33851344]
[1733418953088,0.0017362,100690.0,100670.0,0.15971344]
[1733418953311,0.2003662,100690.0,100670.0,0.15971344]
[1733418954307,0.2003662,100690.0,100670.0,0.30971344]
[1733418954516,0.3989962,100690.0,100670.0,0.15058619]
[1733418954733,0.3989962,100690.0,100670.0,0.25058619]
[1733418954931,0.3990072,100690.0,100670.0,0.15058619]
[1733418955149,0.49868325,100690.0,100670.0,0.00058619]
[1733418955352,0.58128525,100690.0,100670.0,0.00058619]
[1733418955489,0.59990187,100690.0,100670.0,0.00058619]
[1733418955920,0.79854487,100690.0,100670.0,0.00058619]
[1733418956135,0.77992825,100690.0,100670.0,0.00058619]
[1733418956359,0.58128525,100690.0,100670.0,0.00058619]
[1733418956569,0.2003662,100690.0,100670.0,0.10058619]
[1733418957466,0.3990062,100690.0,100670.0,0.00058619]
[1733418958634,0.2003662,100690.0,100670.0,0.00058619]
[1733418959080,0.0017362,100690.0,100670.0,0.00058619]
[1733418959319,0.0017362,100690.0,100670.0,0.17938519]
[1733418959566,0.0017362,100690.0,100670.0,0.24259384]
[1733418960228,0.0017362,100690.0,100660.0,0.59069031]
[1733418960443,0.0017362,100690.0,100670.0,0.368859]
[1733418960675,0.0017362,100690.0,100670.0,0.537714]
[1733418961117,0.0017362,100690.0,100670.0,0.63738905]
[1733418961800,0.0017362,100690.0,100670.0,0.80711615]
[1733418962023,0.0017362,100690.0,100670.0,0.63825715]
[1733418963185,0.0017362,100690.0,100670.0,0.46939915]
[1733418963383,0.0017362,100690.0,100670.0,0.30054415]
[1733418963625,0.198649,100680.0,100670.0,0.0008681]
[1733418963854,0.57888225,100690.0,100670.0,0.0008681]
[1733418964083,0.77752425,100690.0,100670.0,0.0008681]
[1733418964316,0.79691696,100690.0,100670.0,0.0008681]
[1733418964788,0.59827096,100690.0,100670.0,0.0008681]
[1733418965010,0.79691396,100690.0,100670.0,0.0008681]
[1733418965461,0.198649,100680.0,100670.0,0.0008681]
[1733418966824,0.281749,100680.0,100670.0,0.0008681]
[1733418967101,0.46597705,100680.0,100670.0,0.0008681]
[1733418967311,0.51327705,100680.0,100670.0,0.0008681]
[1733418968397,0.42872505,100680.0,100670.0,0.0008681]
[1733418969263,0.43072505,100680.0,100670.0,0.0008681]
[1733418969473,0.43472505,100680.0,100670.0,0.0008681]
[1733418969689,0.43272505,100680.0,100670.0,0.0008681]
[1733418970131,0.44572505,100680.0,100670.0,0.0018681]
[1733418970547,0.48035788,100680.0,100670.0,0.0018681]
[1733418970757,0.44572505,100680.0,100670.0,0.0018681]
[1733418972163,0.1474,100680.0,100670.0,0.0018681]
[1733418972362,0.017,100680.0,100670.0,0.0018681]
[1733418973131,0.017,100680.0,100650.0,0.7754681]
[1733418973132,0.0187328,100680.0,100650.0,0.7754681]
[1733418973415,0.4160538,100680.0,100650.0,0.87514415]
[1733418973648,0.4160538,100680.0,100650.0,0.7236]
[1733418973649,0.49827663,100670.0,100650.0,0.7236]
[1733418973871,0.49703505,100670.0,100650.0,0.7236]
[1733418974079,0.198688,100660.0,100650.0,0.7236]
[1733418974768,0.49703705,100670.0,100650.0,0.7236]
[1733418974956,0.198678,100670.0,100650.0,0.7236]
[1733418975624,0.397359,100670.0,100650.0,0.7236]
[1733418976038,0.397359,100670.0,100650.0,0.6736]
[1733418976509,0.198688,100660.0,100650.0,0.6736]
[1733418976708,0.596043,100670.0,100650.0,0.6756]
[1733418977393,0.596043,100670.0,100650.0,0.6796]
[1733418978282,0.596043,100670.0,100650.0,0.6776]
[1733418978416,0.198688,100660.0,100650.0,0.6776]
[1733418978616,0.280888,100660.0,100650.0,0.6796]
[1733418979031,0.280888,100660.0,100650.0,0.6776]
[1733418979242,0.280888,100660.0,100650.0,0.6736]
[1733418979615,0.38056405,100660.0,100650.0,0.002]
[1733418979841,0.40223744,100660.0,100650.0,0.002]